[Event "GrandPrix_29.05"]
[Site "Chess.com"]
[Date "2020.05.29"]
[Round "6"]
[White "GM_Levan_Pantsulaia"]
[Black "RussianChessFighter"]
[Result "1-0"]
[WhiteElo "2567"]
[BlackElo "2293"]
[TimeControl "600+2"]
[EndTime "11:54:19 PDT"]
[Termination "GM_Levan_Pantsulaia won by resignation"]

1. Nf3 {[%clk 0:09:14.1]} 1... Nf6 {[%clk 0:09:59.3]} 2. g3 {[%clk 0:09:14.2]}
2... b5 {[%clk 0:10:00]} 3. Bg2 {[%clk 0:09:14.1]} 3... Bb7 {[%clk 0:10:01.4]}
4. O-O {[%clk 0:09:15.8]} 4... e6 {[%clk 0:10:03.1]} 5. b3 {[%clk 0:09:15.9]}
5... Be7 {[%clk 0:10:03.9]} 6. c4 {[%clk 0:09:16.8]} 6... a6 {[%clk 0:10:02]} 7.
Nc3 {[%clk 0:09:13.9]} 7... b4 {[%clk 0:09:59.2]} 8. Na4 {[%clk 0:09:15.3]} 8...
c5 {[%clk 0:09:59.5]} 9. Bb2 {[%clk 0:08:59.6]} 9... O-O {[%clk 0:09:59.3]} 10.
d4 {[%clk 0:08:52.3]} 10... cxd4 {[%clk 0:10:01.2]} 11. Qxd4 {[%clk 0:08:53.9]}
11... Nc6 {[%clk 0:09:49.7]} 12. Qe3 {[%clk 0:08:22.8]} 12... d5 {[%clk
0:09:45.4]} 13. Rfd1 {[%clk 0:08:17.8]} 13... Qa5 {[%clk 0:08:50.1]} 14. Qb6
{[%clk 0:07:50.9]} 14... Rab8 {[%clk 0:08:20.2]} 15. Ne5 {[%clk 0:07:06.7]}
15... Qxb6 {[%clk 0:05:09.7]} 16. Nxb6 {[%clk 0:07:08.5]} 16... Rfd8 {[%clk
0:03:27.4]} 17. Rac1 {[%clk 0:06:48.9]} 17... Nxe5 {[%clk 0:02:33.4]} 18. Bxe5
{[%clk 0:06:46.5]} 18... Bd6 {[%clk 0:02:35]} 19. Bxf6 {[%clk 0:06:35.3]} 19...
gxf6 {[%clk 0:02:36.9]} 20. cxd5 {[%clk 0:06:34.9]} 20... Kf8 {[%clk 0:02:23]}
21. dxe6 {[%clk 0:06:15.3]} 21... fxe6 {[%clk 0:02:24.9]} 22. Bxb7 {[%clk
0:06:13.1]} 22... Rxb7 {[%clk 0:02:25.5]} 23. Rc6 {[%clk 0:06:14.4]} 23... Be7
{[%clk 0:02:19.4]} 24. Rxd8+ {[%clk 0:06:14.7]} 24... Bxd8 {[%clk 0:02:20.6]}
25. Nc4 {[%clk 0:06:15.9]} 25... a5 {[%clk 0:01:59.1]} 26. Rxe6 {[%clk
0:06:15.7]} 26... Rd7 {[%clk 0:01:57.2]} 27. Rd6 {[%clk 0:06:16.5]} 27... Rxd6
{[%clk 0:01:44.8]} 28. Nxd6 {[%clk 0:06:18.4]} 28... Ke7 {[%clk 0:01:46.7]} 29.
Nf5+ {[%clk 0:06:15.7]} 29... Ke6 {[%clk 0:01:47.1]} 30. e4 {[%clk 0:06:16.5]}
30... Ke5 {[%clk 0:01:44.5]} 31. f3 {[%clk 0:06:17.4]} 1-0

[Event "GrandPrix_29.05"]
[Site "Chess.com"]
[Date "2020.05.29"]
[Round "6"]
[White "SuperFineHipster"]
[Black "Jan1401"]
[Result "1-0"]
[WhiteElo "2176"]
[BlackElo "2236"]
[TimeControl "600+2"]
[EndTime "11:54:19 PDT"]
[Termination "SuperFineHipster won by resignation"]

1. Nf3 {[%clk 0:10:01.9]} 1... Nf6 {[%clk 0:09:59.9]} 2. c4 {[%clk 0:09:58.8]}
2... b6 {[%clk 0:09:58.5]} 3. g3 {[%clk 0:09:32.7]} 3... Bb7 {[%clk 0:09:54.4]}
4. Bg2 {[%clk 0:09:34]} 4... c5 {[%clk 0:09:50.6]} 5. O-O {[%clk 0:09:33.3]}
5... g6 {[%clk 0:09:51.4]} 6. Nc3 {[%clk 0:09:29.5]} 6... Bg7 {[%clk 0:09:51.9]}
7. d4 {[%clk 0:09:26.3]} 7... cxd4 {[%clk 0:09:51.3]} 8. Qxd4 {[%clk 0:09:28.2]}
8... d6 {[%clk 0:09:49.1]} 9. Qh4 {[%clk 0:09:24]} 9... h6 {[%clk 0:09:34.4]}
10. Rd1 {[%clk 0:09:21.4]} 10... Nc6 {[%clk 0:09:23.7]} 11. g4 {[%clk
0:08:51.9]} 11... g5 {[%clk 0:08:30.5]} 12. Qg3 {[%clk 0:08:51.2]} 12... Na5
{[%clk 0:08:28]} 13. Nd4 {[%clk 0:08:20]} 13... Rc8 {[%clk 0:07:22.9]} 14. Nf5
{[%clk 0:08:10]} 14... Bf8 {[%clk 0:07:19]} 15. b3 {[%clk 0:07:08.5]} 15... Bxg2
{[%clk 0:06:11.8]} 16. Kxg2 {[%clk 0:07:01.8]} 16... Qd7 {[%clk 0:05:46]} 17.
Bb2 {[%clk 0:06:57.1]} 17... h5 {[%clk 0:05:32]} 18. Nb5 {[%clk 0:06:25.7]}
18... Qe6 {[%clk 0:04:45.1]} 19. h3 {[%clk 0:04:14.2]} 19... hxg4 {[%clk
0:04:39.7]} 20. hxg4 {[%clk 0:04:16.1]} 20... Ne4 {[%clk 0:03:40.7]} 21. Qf3
{[%clk 0:03:33.8]} 21... Nc6 {[%clk 0:03:32.9]} 22. Bxh8 {[%clk 0:03:31.9]} 1-0

[Event "GrandPrix_29.05"]
[Site "Chess.com"]
[Date "2020.05.29"]
[Round "6"]
[White "Armen_Barseghyan"]
[Black "Zhuu96"]
[Result "1-0"]
[WhiteElo "2532"]
[BlackElo "2497"]
[TimeControl "600+2"]
[EndTime "11:54:33 PDT"]
[Termination "Armen_Barseghyan won by resignation"]

1. d4 {[%clk 0:10:01.9]} 1... Nf6 {[%clk 0:10:00.7]} 2. Nf3 {[%clk 0:10:01.4]}
2... e6 {[%clk 0:09:59.6]} 3. e3 {[%clk 0:10:02.3]} 3... c5 {[%clk 0:09:58.2]}
4. Bd3 {[%clk 0:10:03]} 4... cxd4 {[%clk 0:09:58.4]} 5. exd4 {[%clk 0:10:02.8]}
5... b6 {[%clk 0:09:59.6]} 6. O-O {[%clk 0:10:03.4]} 6... Bb7 {[%clk 0:10:00.5]}
7. c4 {[%clk 0:10:04.3]} 7... Be7 {[%clk 0:10:01.5]} 8. Nc3 {[%clk 0:10:04.9]}
8... O-O {[%clk 0:10:00.8]} 9. d5 {[%clk 0:10:05.1]} 9... Na6 {[%clk 0:10:01.3]}
10. Re1 {[%clk 0:09:52.1]} 10... Re8 {[%clk 0:09:58]} 11. Bf4 {[%clk 0:09:40.7]}
11... Bf8 {[%clk 0:09:55.3]} 12. Bg5 {[%clk 0:09:04.6]} 12... Nc5 {[%clk
0:09:45.5]} 13. Bc2 {[%clk 0:09:04.5]} 13... h6 {[%clk 0:09:45.3]} 14. Bh4
{[%clk 0:09:01.8]} 14... a5 {[%clk 0:09:44.3]} 15. Qd2 {[%clk 0:08:24.3]} 15...
d6 {[%clk 0:09:32.8]} 16. dxe6 {[%clk 0:08:18.4]} 16... fxe6 {[%clk 0:09:30.6]}
17. Nd4 {[%clk 0:08:09.8]} 17... Qd7 {[%clk 0:09:17.8]} 18. Rad1 {[%clk
0:08:05.3]} 18... g5 {[%clk 0:09:10.7]} 19. Bg3 {[%clk 0:08:03.9]} 19... d5
{[%clk 0:09:12.2]} 20. Ndb5 {[%clk 0:07:11.4]} 20... Rac8 {[%clk 0:09:05.7]} 21.
Qd4 {[%clk 0:06:43.1]} 21... Qf7 {[%clk 0:08:59.9]} 22. Be5 {[%clk 0:06:16.4]}
22... Ncd7 {[%clk 0:08:52.3]} 23. Nd6 {[%clk 0:05:52.4]} 23... Bxd6 {[%clk
0:08:50.5]} 24. Bxd6 {[%clk 0:05:53.5]} 24... Rxc4 {[%clk 0:08:51.7]} 25. Qd3
{[%clk 0:05:37.9]} 25... Ba6 {[%clk 0:07:42.6]} 26. Qd2 {[%clk 0:04:46.5]} 26...
b5 {[%clk 0:07:26.3]} 27. Bb3 {[%clk 0:03:34.4]} 27... Rc6 {[%clk 0:07:24]} 28.
Nxd5 {[%clk 0:03:16.9]} 28... Nxd5 {[%clk 0:07:13.3]} 29. Rxe6 {[%clk
0:02:28.2]} 29... Rxe6 {[%clk 0:07:10.5]} 30. Qxd5 {[%clk 0:02:20.9]} 30...
Rcxd6 {[%clk 0:06:20]} 31. Qxd6 {[%clk 0:02:18.3]} 31... Rxd6 {[%clk 0:06:21.1]}
32. Bxf7+ {[%clk 0:02:18.3]} 32... Kxf7 {[%clk 0:06:21.7]} 33. Rxd6 {[%clk
0:02:17.4]} 33... Bc8 {[%clk 0:05:40.1]} 34. Rc6 {[%clk 0:02:17.7]} 1-0

[Event "GrandPrix_29.05"]
[Site "Chess.com"]
[Date "2020.05.29"]
[Round "6"]
[White "Bosiocic"]
[Black "tigra"]
[Result "1/2-1/2"]
[WhiteElo "2712"]
[BlackElo "2611"]
[TimeControl "600+2"]
[EndTime "11:54:42 PDT"]
[Termination "Game drawn by repetition"]

1. d4 {[%clk 0:10:01.9]} 1... Nf6 {[%clk 0:09:51.9]} 2. Bg5 {[%clk 0:10:02.7]}
2... d5 {[%clk 0:09:39.6]} 3. e3 {[%clk 0:10:03.2]} 3... e6 {[%clk 0:09:39]} 4.
c3 {[%clk 0:10:03.1]} 4... Be7 {[%clk 0:09:40]} 5. Bxf6 {[%clk 0:10:03.9]} 5...
Bxf6 {[%clk 0:09:39.4]} 6. f4 {[%clk 0:10:05]} 6... Bh4+ {[%clk 0:08:58.4]} 7.
g3 {[%clk 0:10:04.9]} 7... Be7 {[%clk 0:09:00.3]} 8. Nf3 {[%clk 0:10:02]} 8...
Nd7 {[%clk 0:09:01.4]} 9. Bd3 {[%clk 0:10:01.2]} 9... b6 {[%clk 0:09:00]} 10.
Nbd2 {[%clk 0:09:59.9]} 10... Bb7 {[%clk 0:09:01.1]} 11. h4 {[%clk 0:09:07.5]}
11... c6 {[%clk 0:08:35]} 12. a4 {[%clk 0:08:59.4]} 12... Qc7 {[%clk 0:08:27]}
13. a5 {[%clk 0:08:53.5]} 13... c5 {[%clk 0:08:15.7]} 14. axb6 {[%clk
0:08:38.2]} 14... axb6 {[%clk 0:08:16.6]} 15. Rxa8+ {[%clk 0:08:37.2]} 15...
Bxa8 {[%clk 0:08:18.5]} 16. Kf2 {[%clk 0:08:15.7]} 16... Bc6 {[%clk 0:08:13]}
17. Ng5 {[%clk 0:07:54.8]} 17... h6 {[%clk 0:07:53.3]} 18. Qh5 {[%clk
0:07:35.7]} 18... O-O {[%clk 0:07:42.4]} 19. Bh7+ {[%clk 0:05:13]} 19... Kh8
{[%clk 0:07:40.1]} 20. Bd3 {[%clk 0:05:01]} 20... Nf6 {[%clk 0:05:53.2]} 21.
Nxf7+ {[%clk 0:04:55.6]} 21... Kg8 {[%clk 0:04:56.5]} 22. Nxh6+ {[%clk
0:04:54.9]} 22... Kh8 {[%clk 0:04:35.8]} 23. Nf7+ {[%clk 0:03:30.4]} 23... Kg8
{[%clk 0:04:36.4]} 24. Nh6+ {[%clk 0:03:05.4]} 24... Kh8 {[%clk 0:04:37.2]} 25.
Nf7+ {[%clk 0:02:33]} 25... Kg8 {[%clk 0:04:36.8]} 26. Nh6+ {[%clk 0:02:24.7]}
1/2-1/2

[Event "GrandPrix_29.05"]
[Site "Chess.com"]
[Date "2020.05.29"]
[Round "6"]
[White "Nikithebest"]
[Black "SacrificeGod"]
[Result "1-0"]
[WhiteElo "2161"]
[BlackElo "2291"]
[TimeControl "600+2"]
[EndTime "11:54:42 PDT"]
[Termination "Nikithebest won by resignation"]

1. e4 {[%clk 0:10:01.9]} 1... c5 {[%clk 0:09:59.6]} 2. Nf3 {[%clk 0:10:02.9]}
2... d6 {[%clk 0:10:00.2]} 3. Bb5+ {[%clk 0:10:03.6]} 3... Nd7 {[%clk
0:10:00.6]} 4. O-O {[%clk 0:10:04.2]} 4... a5 {[%clk 0:10:01.5]} 5. d4 {[%clk
0:09:47.3]} 5... cxd4 {[%clk 0:10:01.8]} 6. Nxd4 {[%clk 0:09:47.9]} 6... Nf6
{[%clk 0:10:02.9]} 7. Nc3 {[%clk 0:09:43.2]} 7... g6 {[%clk 0:10:03.8]} 8. f4
{[%clk 0:09:31.6]} 8... Qc7 {[%clk 0:09:43.5]} 9. Qe2 {[%clk 0:09:07.7]} 9...
Qc5 {[%clk 0:08:43.4]} 10. Be3 {[%clk 0:08:58]} 10... Qh5 {[%clk 0:08:42.8]} 11.
Qxh5 {[%clk 0:08:13.7]} 11... Nxh5 {[%clk 0:08:40.2]} 12. e5 {[%clk 0:08:02.2]}
12... e6 {[%clk 0:08:33.5]} 13. g4 {[%clk 0:07:47.7]} 13... Ng7 {[%clk
0:08:28.8]} 14. Ne4 {[%clk 0:07:47.9]} 14... h5 {[%clk 0:08:13.3]} 15. g5 {[%clk
0:05:45.6]} 15... Be7 {[%clk 0:07:27.9]} 16. exd6 {[%clk 0:05:36.5]} 16... Bd8
{[%clk 0:07:28.6]} 17. Nf6+ {[%clk 0:05:00.4]} 17... Bxf6 {[%clk 0:07:27.4]} 18.
gxf6 {[%clk 0:05:02.3]} 18... Nf5 {[%clk 0:07:28]} 19. Nxf5 {[%clk 0:04:36.7]}
19... gxf5 {[%clk 0:07:28.8]} 20. Kf2 {[%clk 0:04:21.4]} 20... Rh6 {[%clk
0:07:16.6]} 21. Bd4 {[%clk 0:04:20.1]} 21... Kf8 {[%clk 0:07:15.6]} 22. Rad1
{[%clk 0:04:01.9]} 22... Nb8 {[%clk 0:06:53.7]} 23. c4 {[%clk 0:03:36.1]} 23...
Bd7 {[%clk 0:06:52.7]} 24. a4 {[%clk 0:03:33.7]} 24... Nc6 {[%clk 0:06:50.3]}
25. Be5 {[%clk 0:03:22.2]} 25... Rg6 {[%clk 0:06:18.1]} 26. Rg1 {[%clk 0:03:22]}
26... Rg4 {[%clk 0:06:15.6]} 27. h3 {[%clk 0:03:22.1]} 27... Rg6 {[%clk
0:06:02.5]} 28. Rxg6 {[%clk 0:03:14.3]} 28... fxg6 {[%clk 0:06:02.1]} 29. b3
{[%clk 0:03:05.7]} 29... g5 {[%clk 0:05:36.8]} 30. Rg1 {[%clk 0:02:57.3]} 30...
g4 {[%clk 0:04:50.2]} 31. hxg4 {[%clk 0:02:56.8]} 31... hxg4 {[%clk 0:04:51]}
32. Rh1 {[%clk 0:02:58]} 32... Rc8 {[%clk 0:04:36.5]} 33. Rh8+ {[%clk
0:02:51.5]} 1-0

[Event "GrandPrix_29.05"]
[Site "Chess.com"]
[Date "2020.05.29"]
[Round "6"]
[White "Olghita64"]
[Black "DrVelja"]
[Result "0-1"]
[WhiteElo "2009"]
[BlackElo "2159"]
[TimeControl "600+2"]
[EndTime "11:54:43 PDT"]
[Termination "DrVelja won by resignation"]

1. Nf3 {[%clk 0:10:01.9]} 1... Nf6 {[%clk 0:10:01.1]} 2. c4 {[%clk 0:10:02.3]}
2... g6 {[%clk 0:10:02.7]} 3. Nc3 {[%clk 0:10:02.1]} 3... Bg7 {[%clk 0:10:04.3]}
4. e4 {[%clk 0:10:02.5]} 4... e5 {[%clk 0:10:05.9]} 5. Nxe5 {[%clk 0:09:38.1]}
5... O-O {[%clk 0:10:05.6]} 6. Nf3 {[%clk 0:09:32.3]} 6... Re8 {[%clk
0:10:06.6]} 7. d3 {[%clk 0:09:31.5]} 7... d5 {[%clk 0:10:08.2]} 8. cxd5 {[%clk
0:09:28]} 8... Nxd5 {[%clk 0:10:10.1]} 9. Nxd5 {[%clk 0:09:23.5]} 9... Qxd5
{[%clk 0:10:09.8]} 10. Be2 {[%clk 0:09:18.9]} 10... Qd6 {[%clk 0:10:08.8]} 11.
O-O {[%clk 0:09:14.7]} 11... c5 {[%clk 0:10:10.1]} 12. Rb1 {[%clk 0:08:04.7]}
12... Nc6 {[%clk 0:10:06.3]} 13. b3 {[%clk 0:08:01.2]} 13... Bg4 {[%clk
0:08:40.9]} 14. Bb2 {[%clk 0:07:18.9]} 14... Bxb2 {[%clk 0:08:24.3]} 15. Rxb2
{[%clk 0:07:19.1]} 15... Rad8 {[%clk 0:08:26.2]} 16. Qc1 {[%clk 0:06:37.1]}
16... Bxf3 {[%clk 0:07:06.4]} 17. Bxf3 {[%clk 0:06:36.5]} 17... Qxd3 {[%clk
0:07:07.7]} 18. Qxc5 {[%clk 0:05:01.3]} 18... Nd4 {[%clk 0:07:05.3]} 19. Bd1
{[%clk 0:04:59.8]} 19... Rxe4 {[%clk 0:05:53]} 20. Qxa7 {[%clk 0:04:40.3]} 20...
Qxd1 {[%clk 0:05:14]} 21. Qa5 {[%clk 0:01:51.3]} 21... Ne2+ {[%clk 0:05:08.8]}
22. Rxe2 {[%clk 0:01:44.3]} 22... Rxe2 {[%clk 0:05:10.7]} 0-1

[Event "GrandPrix_29.05"]
[Site "Chess.com"]
[Date "2020.05.29"]
[Round "6"]
[White "Happy1712Drummer"]
[Black "ZEN-22"]
[Result "1-0"]
[WhiteElo "2209"]
[BlackElo "2053"]
[TimeControl "600+2"]
[EndTime "11:54:59 PDT"]
[Termination "Happy1712Drummer won by resignation"]

1. Nf3 {[%clk 0:10:00.9]} 1... d6 {[%clk 0:09:55.4]} 2. d4 {[%clk 0:09:56.4]}
2... Nf6 {[%clk 0:09:56]} 3. c4 {[%clk 0:09:54.1]} 3... g6 {[%clk 0:09:49.6]} 4.
Nc3 {[%clk 0:09:54.3]} 4... Bf5 {[%clk 0:09:50]} 5. Qb3 {[%clk 0:09:21.6]} 5...
b6 {[%clk 0:09:49.3]} 6. g3 {[%clk 0:08:59.1]} 6... c5 {[%clk 0:09:49]} 7. Bg2
{[%clk 0:08:56.2]} 7... Nc6 {[%clk 0:09:49.5]} 8. Qd1 {[%clk 0:07:38.9]} 8...
Bg7 {[%clk 0:09:45.1]} 9. O-O {[%clk 0:07:27.8]} 9... O-O {[%clk 0:09:34.9]} 10.
d5 {[%clk 0:06:48.7]} 10... Na5 {[%clk 0:09:17]} 11. Nd2 {[%clk 0:06:47.7]}
11... a6 {[%clk 0:09:12.1]} 12. a3 {[%clk 0:06:25.1]} 12... Qc7 {[%clk
0:08:58.9]} 13. e4 {[%clk 0:06:11]} 13... Bd7 {[%clk 0:08:57.7]} 14. Qe2 {[%clk
0:06:11.4]} 14... Rfc8 {[%clk 0:08:04.4]} 15. a4 {[%clk 0:05:51.6]} 15... Qb7
{[%clk 0:07:52.4]} 16. f4 {[%clk 0:04:08.3]} 16... b5 {[%clk 0:07:20.8]} 17.
axb5 {[%clk 0:03:53]} 17... axb5 {[%clk 0:07:21.2]} 18. e5 {[%clk 0:03:46.6]}
18... Ne8 {[%clk 0:06:47.5]} 19. cxb5 {[%clk 0:03:23.9]} 19... c4 {[%clk
0:06:37.3]} 20. e6 {[%clk 0:03:13.7]} 20... Bxb5 {[%clk 0:06:33.9]} 21. Nxb5
{[%clk 0:02:36.3]} 21... Qxb5 {[%clk 0:06:32.5]} 22. exf7+ {[%clk 0:02:20.9]}
22... Kxf7 {[%clk 0:06:32]} 23. Qe6+ {[%clk 0:02:08.1]} 23... Kf8 {[%clk
0:06:32.3]} 24. f5 {[%clk 0:02:09.4]} 24... Nf6 {[%clk 0:05:52.9]} 25. fxg6
{[%clk 0:02:07.4]} 25... hxg6 {[%clk 0:05:50]} 26. Ne4 {[%clk 0:02:07.1]} 26...
Qe8 {[%clk 0:05:25.1]} 27. Nxf6 {[%clk 0:01:46.5]} 27... exf6 {[%clk 0:05:24.7]}
28. Rxf6+ {[%clk 0:01:40.3]} 28... Bxf6 {[%clk 0:05:23.7]} 29. Bh6+ {[%clk
0:01:39.4]} 29... Bg7 {[%clk 0:05:22.7]} 30. Rf1+ {[%clk 0:01:39.8]} 1-0

[Event "GrandPrix_29.05"]
[Site "Chess.com"]
[Date "2020.05.29"]
[Round "6"]
[White "gliglu"]
[Black "WildBizon"]
[Result "1-0"]
[WhiteElo "2386"]
[BlackElo "2088"]
[TimeControl "600+2"]
[EndTime "11:55:11 PDT"]
[Termination "gliglu won by resignation"]

1. d4 {[%clk 0:10:01.9]} 1... Nf6 {[%clk 0:10:00.5]} 2. c4 {[%clk 0:10:02.4]}
2... g6 {[%clk 0:10:01.5]} 3. Nf3 {[%clk 0:10:02]} 3... Bg7 {[%clk 0:10:02]} 4.
g3 {[%clk 0:10:03]} 4... O-O {[%clk 0:09:58.4]} 5. Bg2 {[%clk 0:10:04]} 5... c6
{[%clk 0:09:59.7]} 6. O-O {[%clk 0:10:03.7]} 6... d5 {[%clk 0:10:01.3]} 7. Nbd2
{[%clk 0:10:04.4]} 7... Bf5 {[%clk 0:10:01.4]} 8. b3 {[%clk 0:10:04.7]} 8... Ne4
{[%clk 0:10:02.6]} 9. Bb2 {[%clk 0:10:05.2]} 9... Qa5 {[%clk 0:10:04.3]} 10.
Nxe4 {[%clk 0:09:58.8]} 10... Bxe4 {[%clk 0:10:01.2]} 11. e3 {[%clk 0:09:38.8]}
11... Rd8 {[%clk 0:09:56.5]} 12. Qe2 {[%clk 0:09:37.5]} 12... Nd7 {[%clk
0:09:49.8]} 13. Rfc1 {[%clk 0:09:30.4]} 13... Rac8 {[%clk 0:09:43.8]} 14. Bc3
{[%clk 0:09:28]} 14... Qa6 {[%clk 0:09:43.8]} 15. Bf1 {[%clk 0:09:21.4]} 15...
c5 {[%clk 0:09:34.3]} 16. Nd2 {[%clk 0:08:45.5]} 16... Bf5 {[%clk 0:08:37.6]}
17. Qf3 {[%clk 0:04:53.3]} 17... cxd4 {[%clk 0:08:13.1]} 18. exd4 {[%clk
0:04:45.5]} 18... dxc4 {[%clk 0:08:10.4]} 19. Nxc4 {[%clk 0:04:34]} 19... Qc6
{[%clk 0:07:00.1]} 20. d5 {[%clk 0:04:25.2]} 20... Qc7 {[%clk 0:06:44.7]} 21.
Bxg7 {[%clk 0:04:00.5]} 21... Kxg7 {[%clk 0:06:45.2]} 22. g4 {[%clk 0:04:01.5]}
22... b5 {[%clk 0:06:46]} 23. Ne3 {[%clk 0:03:52.2]} 23... Qxc1 {[%clk
0:06:27.3]} 24. Rxc1 {[%clk 0:03:52.1]} 24... Rxc1 {[%clk 0:06:28.6]} 25. gxf5
{[%clk 0:03:50.4]} 25... Nf6 {[%clk 0:06:15.8]} 26. Kg2 {[%clk 0:03:40.9]} 26...
a6 {[%clk 0:06:04.4]} 27. a4 {[%clk 0:03:40.2]} 27... Rc3 {[%clk 0:05:42.4]} 28.
fxg6 {[%clk 0:03:39.7]} 28... b4 {[%clk 0:05:08.5]} 29. Nf5+ {[%clk 0:03:07.9]}
29... Kxg6 {[%clk 0:05:04]} 30. Bd3 {[%clk 0:03:04.5]} 30... h5 {[%clk
0:04:43.7]} 31. Qg3+ {[%clk 0:02:49.3]} 31... Ng4 {[%clk 0:04:42.7]} 32. h3
{[%clk 0:02:50.1]} 32... e6 {[%clk 0:04:35.1]} 33. hxg4 {[%clk 0:02:35.7]} 33...
exf5 {[%clk 0:04:35.5]} 34. gxf5+ {[%clk 0:02:36]} 34... Kf6 {[%clk 0:04:35.6]}
35. Qh4+ {[%clk 0:02:36.4]} 35... Ke5 {[%clk 0:04:36]} 36. Qxd8 {[%clk
0:02:34.8]} 1-0

[Event "GrandPrix_29.05"]
[Site "Chess.com"]
[Date "2020.05.29"]
[Round "6"]
[White "Onischuk_V"]
[Black "jafarlib"]
[Result "1-0"]
[WhiteElo "2321"]
[BlackElo "2138"]
[TimeControl "600+2"]
[EndTime "11:55:21 PDT"]
[Termination "Onischuk_V won by resignation"]

1. e4 {[%clk 0:09:56.5]} 1... c5 {[%clk 0:10:00.6]} 2. Nf3 {[%clk 0:09:56]} 2...
Nc6 {[%clk 0:10:02.2]} 3. Bb5 {[%clk 0:09:56.4]} 3... g6 {[%clk 0:10:02.4]} 4.
Bxc6 {[%clk 0:09:55.6]} 4... dxc6 {[%clk 0:10:02.8]} 5. d3 {[%clk 0:09:54.1]}
5... Bg7 {[%clk 0:10:03.5]} 6. h3 {[%clk 0:09:54.6]} 6... Nf6 {[%clk 0:10:03.2]}
7. Nc3 {[%clk 0:09:52.9]} 7... Nd7 {[%clk 0:10:03.9]} 8. Be3 {[%clk 0:09:52.8]}
8... e5 {[%clk 0:10:04.4]} 9. Qd2 {[%clk 0:09:53.9]} 9... h6 {[%clk 0:10:00.6]}
10. Nh2 {[%clk 0:09:13.2]} 10... Qe7 {[%clk 0:09:57.1]} 11. O-O {[%clk
0:08:46.2]} 11... b6 {[%clk 0:09:45.9]} 12. a3 {[%clk 0:08:32.9]} 12... a5
{[%clk 0:09:44.3]} 13. f4 {[%clk 0:08:10.7]} 13... exf4 {[%clk 0:09:40.6]} 14.
Bxf4 {[%clk 0:08:11.8]} 14... Ne5 {[%clk 0:09:42]} 15. Nf3 {[%clk 0:08:12.4]}
15... Nxf3+ {[%clk 0:09:40.5]} 16. Rxf3 {[%clk 0:08:12.9]} 16... Be6 {[%clk
0:09:42]} 17. e5 {[%clk 0:07:51.2]} 17... g5 {[%clk 0:09:28]} 18. Bg3 {[%clk
0:07:49.4]} 18... g4 {[%clk 0:09:28.1]} 19. hxg4 {[%clk 0:07:46.6]} 19... Bxg4
{[%clk 0:09:30]} 20. Rf2 {[%clk 0:07:46.3]} 20... O-O-O {[%clk 0:09:20.6]} 21.
Qf4 {[%clk 0:06:37.8]} 21... Be6 {[%clk 0:08:30]} 22. Ne4 {[%clk 0:06:37.4]}
22... Rd4 {[%clk 0:08:11.7]} 23. Raf1 {[%clk 0:06:11.6]} 23... h5 {[%clk
0:07:29]} 24. c3 {[%clk 0:05:38]} 24... Rxd3 {[%clk 0:07:21.8]} 25. Nd6+ {[%clk
0:05:29.6]} 25... Kb8 {[%clk 0:07:03.4]} 26. Bh4 {[%clk 0:05:29.3]} 26... Qc7
{[%clk 0:07:00.4]} 27. Qg5 {[%clk 0:05:19.2]} 27... Bh6 {[%clk 0:05:06.4]} 28.
Qf6 {[%clk 0:05:14.6]} 28... Rh7 {[%clk 0:05:05.7]} 29. Bg5 {[%clk 0:05:06.6]}
29... Bg7 {[%clk 0:04:04.7]} 30. Qf4 {[%clk 0:05:06.9]} 30... Rd5 {[%clk
0:04:03.8]} 31. Bf6 {[%clk 0:05:04.7]} 31... Bxf6 {[%clk 0:03:48.3]} 32. Qxf6
{[%clk 0:05:05.2]} 32... h4 {[%clk 0:03:45.8]} 33. Qg5 {[%clk 0:05:01.4]} 33...
Rh8 {[%clk 0:03:32]} 34. Qg7 {[%clk 0:04:53.5]} 34... Rh5 {[%clk 0:02:48.3]} 35.
Rxf7 {[%clk 0:04:48.2]} 35... Bxf7 {[%clk 0:02:45.1]} 36. Rxf7 {[%clk
0:04:48.5]} 1-0

[Event "GrandPrix_29.05"]
[Site "Chess.com"]
[Date "2020.05.29"]
[Round "6"]
[White "DenLaz"]
[Black "Funo09"]
[Result "1/2-1/2"]
[WhiteElo "2760"]
[BlackElo "2641"]
[TimeControl "600+2"]
[EndTime "11:55:25 PDT"]
[Termination "Game drawn by agreement"]

1. d4 {[%clk 0:09:59.3]} 1... Nf6 {[%clk 0:10:01]} 2. c4 {[%clk 0:10:00.5]} 2...
Nc6 {[%clk 0:10:02.3]} 3. Nf3 {[%clk 0:09:58.8]} 3... d6 {[%clk 0:10:03.2]} 4.
g3 {[%clk 0:09:42.9]} 4... Bg4 {[%clk 0:10:01.2]} 5. Bg2 {[%clk 0:09:42]} 5...
e5 {[%clk 0:10:02.6]} 6. O-O {[%clk 0:09:38.4]} 6... Qd7 {[%clk 0:08:43.9]} 7.
Nc3 {[%clk 0:09:15]} 7... Be7 {[%clk 0:08:42.8]} 8. d5 {[%clk 0:09:04.1]} 8...
Nb8 {[%clk 0:08:43.8]} 9. Ne1 {[%clk 0:08:57.3]} 9... a5 {[%clk 0:08:33.1]} 10.
f3 {[%clk 0:08:57.9]} 10... Bh3 {[%clk 0:08:28.8]} 11. e4 {[%clk 0:08:59]} 11...
Na6 {[%clk 0:08:25.5]} 12. Nd3 {[%clk 0:08:57.2]} 12... O-O {[%clk 0:07:28]} 13.
f4 {[%clk 0:08:49.4]} 13... Rfe8 {[%clk 0:06:11]} 14. fxe5 {[%clk 0:08:07.9]}
14... dxe5 {[%clk 0:06:11.1]} 15. Bxh3 {[%clk 0:08:09]} 15... Qxh3 {[%clk
0:06:08.7]} 16. Nf2 {[%clk 0:07:46.2]} 16... Qd7 {[%clk 0:05:32.1]} 17. Be3
{[%clk 0:07:38.1]} 17... Bc5 {[%clk 0:05:25.3]} 18. Qf3 {[%clk 0:07:36.3]} 18...
Rf8 {[%clk 0:05:17.4]} 19. Nd3 {[%clk 0:07:33]} 19... Bxe3+ {[%clk 0:05:10.1]}
20. Qxe3 {[%clk 0:07:34.9]} 20... Qe7 {[%clk 0:05:06.9]} 21. Rf5 {[%clk
0:06:28.6]} 21... Nd7 {[%clk 0:05:07.4]} 22. Raf1 {[%clk 0:06:26.9]} 22... Nb4
{[%clk 0:04:52.9]} 23. Ne1 {[%clk 0:06:17.2]} 23... f6 {[%clk 0:04:29.8]} 24. g4
{[%clk 0:06:00]} 24... Qc5 {[%clk 0:04:16.2]} 25. Qxc5 {[%clk 0:05:58.1]} 25...
Nxc5 {[%clk 0:04:18.1]} 26. g5 {[%clk 0:05:53.4]} 26... fxg5 {[%clk 0:03:50.1]}
27. Rxe5 {[%clk 0:05:47.3]} 27... Rfe8 {[%clk 0:03:20.1]} 28. Rxe8+ {[%clk
0:05:15]} 28... Rxe8 {[%clk 0:03:20.7]} 29. a3 {[%clk 0:05:16.2]} 29... Nba6
{[%clk 0:03:14.3]} 30. Nf3 {[%clk 0:05:15.6]} 30... Nxe4 {[%clk 0:03:09.7]} 31.
Re1 {[%clk 0:05:15.1]} 31... Nd6 {[%clk 0:02:50.8]} 32. Rxe8+ {[%clk 0:05:14]}
32... Nxe8 {[%clk 0:02:52.7]} 33. Nxg5 {[%clk 0:05:15.6]} 33... Nd6 {[%clk
0:02:44.6]} 34. b3 {[%clk 0:05:15.1]} 34... Nc5 {[%clk 0:02:34.7]} 35. b4 {[%clk
0:05:14.7]} 35... axb4 {[%clk 0:02:36.6]} 36. axb4 {[%clk 0:05:16.6]} 36... Nd3
{[%clk 0:02:36.6]} 37. c5 {[%clk 0:05:17.9]} 37... Ne8 {[%clk 0:02:27.8]} 38.
Na2 {[%clk 0:05:15.6]} 38... Nf4 {[%clk 0:02:14.5]} 39. Nc3 {[%clk 0:05:15]}
39... Nd3 {[%clk 0:02:15.3]} 40. Na2 {[%clk 0:05:15.8]} 1/2-1/2